fUSD/lending_fUSD_20260702
["ID","MTS","AMOUNT","RATE_DAILY","PERIOD"]
[426893994,1782991360000,-304.49658473,0.00023367,2]
[426893997,1782991360000,-624.86712206,0.00023367,2]
[426893996,1782991360000,-500.0,0.00023367,2]
[426893999,1782991360000,-259.12298525,0.00023367,2]
[426893998,1782991360000,-500.0,0.00023367,2]
[426893993,1782991360000,-500.0,0.00023367,2]
[426894002,1782991361000,-4259.12298525,0.00023368,2]
[426894001,1782991361000,-500.0,0.00023367,2]
[426894000,1782991361000,-240.87701475,0.00023367,2]
[426894004,1782991363000,-4982.85701475,0.00023368,2]
[426894005,1782991363000,-17.14298525,0.00023368,2]
[426894003,1782991363000,-5000.0,0.00023368,2]
[426894007,1782991364000,-2521.50298525,0.00023368,2]
[426894006,1782991364000,-2478.49701475,0.00023368,2]
[426894008,1782991365000,-5000.0,0.00023368,2]
[426894009,1782991365000,-1949.78701475,0.00023368,2]
[426894011,1782991365000,-2899.22298525,0.00023368,2]
[426894010,1782991365000,-150.99,0.00023368,2]
[426894013,1782991366000,-5000.0,0.00023368,2]
[426894012,1782991366000,-5000.0,0.00023368,2]
[426894016,1782991367000,-5000.0,0.00023368,2]
[426894015,1782991367000,-5000.0,0.00023368,2]
[426894014,1782991367000,-5000.0,0.00023368,2]
[426894017,1782991368000,-5000.0,0.00023368,2]
[426894019,1782991368000,-5000.0,0.00023368,2]
[426894018,1782991368000,-5000.0,0.00023368,2]
[426894021,1782991369000,-5000.0,0.00023368,2]
[426894020,1782991369000,-5000.0,0.00023368,2]
[426894023,1782991370000,-668.24298525,0.00023368,2]
[426894022,1782991370000,-4331.75701475,0.00023368,2]
[426894024,1782991389000,-617.2654,0.00023368,2]
[426894025,1782991405000,-3400.0,0.0002336,2]
[426894058,1782991832000,-500.0,0.00023362,2]
[426894059,1782991832000,-500.0,0.00023362,2]
[426894062,1782991832000,-500.0,0.00023362,2]
[426894053,1782991832000,-500.0,0.00023362,2]
[426894060,1782991832000,-500.0,0.00023362,2]
[426894061,1782991832000,-500.0,0.00023362,2]
[426894063,1782991832000,-500.0,0.00023362,2]
[426894065,1782991832000,-380.44965847,0.00023362,2]
[426894069,1782991832000,-2330.9652744,0.00023363,2]
[426894085,1782991832000,-305.0,0.00024,2]
[426894066,1782991832000,-10622.77,0.00023362,2]
[426894071,1782991832000,-130322.3693979,0.00023363,2]
[426894075,1782991832000,-605.78698873,0.00023415,2]
[426894079,1782991832000,-2211.70864437,0.000235,2]
[426894072,1782991832000,-2498.2417842,0.00023363,2]
[426894078,1782991832000,-200.0,0.00023439,2]
[426894073,1782991832000,-164193.3302584,0.00023363,2]
[426894082,1782991832000,-150.0,0.00023537,2]
[426894081,1782991832000,-166.93348367,0.00023522,2]
[426894056,1782991832000,-500.0,0.00023362,2]
[426894064,1782991832000,-427.81501539,0.00023362,2]
[426894051,1782991832000,-160.24895798,0.00023362,2]
[426894032,1782991832000,-150.0,0.00017573,2]
[426894047,1782991832000,-500.0,0.00023362,2]
[426894030,1782991832000,-250.0,0.00017034,2]
[426894029,1782991832000,-171.8,0.00016712,2]
[426894031,1782991832000,-150.0,0.00017356,2]
[426894033,1782991832000,-234.0,0.00017747,2]
[426894034,1782991832000,-250.0,0.00018384,2]
[426894035,1782991832000,-250.0,0.00018384,2]
[426894039,1782991832000,-1088.41,0.0002336,7]
[426894038,1782991832000,-219.4630919,0.0002336,2]
[426894036,1782991832000,-199.5,0.00022356,2]
[426894052,1782991832000,-500.0,0.00023362,2]
[426894037,1782991832000,-212.92,0.00023348,2]
[426894040,1782991832000,-157.0,0.0002336,2]
[426894042,1782991832000,-999.99,0.00023362,2]
[426894043,1782991832000,-9999.99,0.00023362,2]
[426894044,1782991832000,-468.56,0.00023362,2]
[426894045,1782991832000,-279.75,0.00023362,2]
[426894046,1782991832000,-281.80840793,0.00023362,2]
[426894049,1782991832000,-465.33829803,0.00023362,2]
[426894050,1782991832000,-500.0,0.00023362,2]
[426894048,1782991832000,-380.43172113,0.00023362,2]
[426894041,1782991832000,-1000.0,0.00023362,2]
[426894084,1782991832000,-266.0,0.00024,2]
[426894121,1782991832000,-2233.19,0.00025,2]
[426894088,1782991832000,-192.0,0.00024,2]
[426894115,1782991832000,-157.0,0.00025,2]
[426894113,1782991832000,-156.0,0.00025,2]
[426894111,1782991832000,-305.0,0.00025,2]
[426894114,1782991832000,-192.0,0.00025,2]
[426894112,1782991832000,-157.0,0.00025,2]
[426894117,1782991832000,-5212.1,0.00025,2]
[426894116,1782991832000,-362.0,0.00025,2]
[426894118,1782991832000,-2233.19,0.00025,2]
[426894120,1782991832000,-5212.1,0.00025,2]
[426894107,1782991832000,-199.74492617,0.00024893,2]
[426894119,1782991832000,-1488.46,0.00025,2]
[426894124,1782991832000,-155.22,0.00025001,2]
[426894127,1782991832000,-200.0,0.0002523,2]
[426894129,1782991832000,-2790.4,0.00025498,2]
[426894126,1782991832000,-8902.15679157,0.00025227,2]
[426894130,1782991832000,-1071.18,0.00025556,2]
[426894128,1782991832000,-3127.84,0.00025457,2]
[426894125,1782991832000,-11636.12320843,0.00025227,2]
[426894131,1782991832000,-5000.0,0.00025556,2]
[426894083,1782991832000,-156.0,0.00024,2]
[426894122,1782991832000,-1488.46,0.00025,2]
[426894110,1782991832000,-266.0,0.00025,2]
[426894123,1782991832000,-175.0,0.00025,2]
[426894108,1782991832000,-151.54125972,0.00024967,2]
[426894086,1782991832000,-157.0,0.00024,2]
[426894109,1782991832000,-156.0,0.00025,2]
[426894090,1782991832000,-151.0,0.00024,2]
[426894087,1782991832000,-156.0,0.00024,2]
[426894089,1782991832000,-154.0,0.00024,2]
[426894092,1782991832000,-168.0,0.00024,2]
[426894095,1782991832000,-784.25,0.00024174,2]
[426894096,1782991832000,-500.0,0.00024452,2]
[426894097,1782991832000,-466.51,0.00024452,2]
[426894094,1782991832000,-150.0,0.00024,2]
[426894091,1782991832000,-362.0,0.00024,2]
[426894098,1782991832000,-356.3,0.00024584,2]
[426894102,1782991832000,-173.66,0.00024658,2]
[426894099,1782991832000,-1050.11,0.00024611,7]
[426894104,1782991832000,-333.86696734,0.00024775,2]
[426894103,1782991832000,-504.08865584,0.00024726,2]
[426894100,1782991832000,-209.5,0.00024658,2]
[426894105,1782991832000,-5521.0,0.000248,5]
[426894093,1782991832000,-175.0,0.00024,2]
[426894101,1782991832000,-1000.0,0.00024658,2]
[426894106,1782991832000,-623.5,0.00024829,2]
[426894162,1782991833000,-150.0,0.00026139,2]
[426894167,1782991833000,-361.71706959,0.00026166,2]
[426894169,1782991833000,-183.42225279,0.00026166,2]
[426894171,1782991833000,-190.91969851,0.00026166,2]
[426894168,1782991833000,-182.53513807,0.00026166,2]
[426894164,1782991833000,-431.59658304,0.00026166,2]
[426894166,1782991833000,-402.80500922,0.00026166,2]
[426894165,1782991833000,-332.15884927,0.00026166,2]
[426894163,1782991833000,-1958.29,0.00026163,2]
[426894173,1782991833000,-212.83653502,0.00026166,2]
[426894170,1782991833000,-190.67550415,0.00026166,2]
[426894174,1782991833000,-387.69320176,0.00026167,2]
[426894179,1782991833000,-226.12653457,0.00026167,2]
[426894176,1782991833000,-419.06403705,0.00026167,2]
[426894175,1782991833000,-317.52272256,0.00026167,2]
[426894177,1782991833000,-160.73161154,0.00026167,2]
[426894182,1782991833000,-550.42592493,0.00026167,2]
[426894183,1782991833000,-667.73393468,0.00026167,2]
[426894180,1782991833000,-448.30021362,0.00026167,2]
[426894178,1782991833000,-225.63530289,0.00026167,2]
[426894181,1782991833000,-427.51082192,0.00026167,2]
[426894184,1782991833000,-451.07069604,0.00026167,2]
[426894188,1782991833000,-214.26546837,0.00026176,2]
[426894190,1782991833000,-186.30786062,0.00026176,2]
[426894160,1782991833000,-1031.18425885,0.00026118,2]
[426894172,1782991833000,-207.71217299,0.00026166,2]
[426894161,1782991833000,-2607.96705009,0.00026118,2]
[426894138,1782991833000,-186.97625077,0.00025611,2]
[426894156,1782991833000,-165.28,0.00026095,2]
[426894186,1782991833000,-509.24029271,0.00026176,2]
[426894133,1782991833000,-166.07942464,0.00025609,2]
[426894132,1782991833000,-3104.82,0.00025593,2]
[426894135,1782991833000,-209.53201853,0.00025611,2]
[426894134,1782991833000,-158.76136128,0.00025611,2]
[426894136,1782991833000,-224.15010681,0.00025611,2]
[426894139,1782991833000,-500.80045101,0.00025611,2]
[426894141,1782991833000,-254.62014636,0.00025619,2]
[426894140,1782991833000,-239.05837387,0.00025611,2]
[426894137,1782991833000,-275.21296247,0.00025611,2]
[426894142,1782991833000,-199.64633206,0.0002562,2]
[426894146,1782991833000,-163.80783072,0.00025882,2]
[426894159,1782991833000,-468.75595281,0.00026118,2]
[426894145,1782991833000,-948.61,0.00025863,7]
[426894144,1782991833000,-501.93,0.00025845,2]
[426894143,1782991833000,-365.31,0.00025707,2]
[426894148,1782991833000,-266.0,0.00026,2]
[426894150,1782991833000,-157.0,0.00026,2]
[426894154,1782991833000,-175.0,0.00026,2]
[426894151,1782991833000,-164.0,0.00026,2]
[426894152,1782991833000,-192.0,0.00026,2]
[426894149,1782991833000,-305.0,0.00026,2]
[426894153,1782991833000,-362.0,0.00026,2]
[426894155,1782991833000,-251.3,0.00026046,2]
[426894157,1782991833000,-3385.03194991,0.00026118,2]
[426894158,1782991833000,-424.92078834,0.00026118,2]
[426894147,1782991833000,-156.0,0.00026,2]
[426894187,1782991833000,-215.68929519,0.00026176,2]
[426894229,1782991833000,-293.66,0.00026885,2]
[426894185,1782991833000,-478.11674774,0.00026167,2]
[426894219,1782991833000,-1806.79,0.00026198,2]
[426894221,1782991833000,-219.93,0.00026225,2]
[426894224,1782991833000,-2488.86,0.0002632,2]
[426894223,1782991833000,-3017.12,0.000263,2]
[426894227,1782991833000,-1071.18,0.00026833,2]
[426894226,1782991833000,-260.0,0.00026521,2]
[426894230,1782991833000,-156.0,0.00027,2]
[426894225,1782991833000,-440.21464978,0.00026469,2]
[426894246,1782991833000,-209.5,0.00027397,15]
[426894228,1782991833000,-165.78,0.00026848,2]
[426894236,1782991833000,-175.0,0.00027,2]
[426894232,1782991833000,-305.0,0.00027,2]
[426894222,1782991833000,-1628.83,0.00026273,2]
[426894235,1782991833000,-362.0,0.00027,2]
[426894234,1782991833000,-192.0,0.00027,2]
[426894237,1782991833000,-769.47,0.00027114,7]
[426894239,1782991833000,-151.54125967,0.00027207,2]
[426894238,1782991833000,-508.0,0.00027137,2]
[426894241,1782991833000,-249.0,0.00027356,2]
[426894240,1782991833000,-160.0,0.00027239,2]
[426894242,1782991833000,-1093.38131104,0.00027361,2]
[426894243,1782991833000,-265.419946,0.00027383,14]
[426894245,1782991833000,-1500.0,0.00027397,2]
[426894244,1782991833000,-216.69616408,0.00027396,2]
[426894247,1782991833000,-160.0,0.00027397,10]
[426894189,1782991833000,-348.79340233,0.00026176,2]
[426894231,1782991833000,-266.0,0.00027,2]
[426894220,1782991833000,-201.42,0.00026212,2]
[426894233,1782991833000,-159.0,0.00027,2]
[426894217,1782991833000,-167.52780625,0.00026178,2]
[426894215,1782991833000,-399.29266412,0.00026178,2]
[426894195,1782991833000,-363.6444086,0.00026178,2]
[426894196,1782991833000,-211.89925581,0.00026178,2]
[426894191,1782991833000,-228.77926889,0.00026176,2]
[426894194,1782991833000,-243.84811486,0.00026176,2]
[426894193,1782991833000,-189.43481981,0.00026176,2]
[426894197,1782991833000,-187.07062096,0.00026178,2]
[426894199,1782991833000,-212.35390637,0.00026178,2]
[426894198,1782991833000,-225.5116652,0.00026178,2]
[426894201,1782991833000,-190.80217622,0.00026178,2]
[426894200,1782991833000,-220.05609687,0.00026178,2]
[426894202,1782991833000,-216.49193156,0.00026178,2]
[426894210,1782991833000,-181.00725791,0.00026178,2]
[426894192,1782991833000,-416.55382186,0.00026176,2]
[426894209,1782991833000,-208.86025539,0.00026178,2]
[426894204,1782991833000,-209.43328193,0.00026178,2]
[426894216,1782991833000,-169.48591583,0.00026178,2]
[426894218,1782991833000,-1071.18,0.00026194,2]
[426894207,1782991833000,-217.38435038,0.00026178,2]
[426894203,1782991833000,-194.67496398,0.00026178,2]
[426894213,1782991833000,-182.32691445,0.00026178,2]
[426894214,1782991833000,-387.09077781,0.00026178,2]
[426894208,1782991833000,-187.17696563,0.00026178,2]
[426894212,1782991833000,-194.12680007,0.00026178,2]
[426894205,1782991833000,-199.98273395,0.00026178,2]
[426894211,1782991833000,-216.20832215,0.00026178,2]
[426894206,1782991833000,-182.80286938,0.00026178,2]
[426894286,1782991834000,-5922.97022071,0.00028,2]
[426894290,1782991834000,-851.24811037,0.00028,2]
[426894289,1782991834000,-156.0,0.00028,2]
[426894279,1782991834000,-1508.1096216,0.0002794,2]
[426894287,1782991834000,-1041.62796235,0.00028,2]
[426894284,1782991834000,-165.28,0.00027958,2]
[426894281,1782991834000,-130322.3693979,0.00027942,2]
[426894283,1782991834000,-164193.3302584,0.00027942,2]
[426894282,1782991834000,-2498.2417842,0.00027942,2]
[426894280,1782991834000,-971.235531,0.00027942,2]
[426894285,1782991834000,-28646.089089,0.0002799,2]
[426894288,1782991834000,-774.91397975,0.00028,2]
[426894293,1782991834000,-192.0,0.00028,2]
[426894297,1782991834000,-175.0,0.00028,2]
[426894294,1782991834000,-362.0,0.00028,2]
[426894292,1782991834000,-305.0,0.00028,2]
[426894295,1782991834000,-3722.65,0.00028,2]
[426894296,1782991834000,-3722.65,0.00028,2]
[426894299,1782991834000,-5922.97022071,0.000282,2]
[426894298,1782991834000,-1071.18,0.00028111,2]
[426894300,1782991834000,-1041.62796235,0.000282,2]
[426894301,1782991834000,-774.91397975,0.000282,2]
[426894303,1782991834000,-19748.39553303,0.00028293,2]
[426894304,1782991834000,-1509.43007887,0.00028352,2]
[426894302,1782991834000,-851.24811037,0.000282,2]
[426894276,1782991834000,-851.24811037,0.000277,2]
[426894291,1782991834000,-266.0,0.00028,2]
[426894278,1782991834000,-3374.50392326,0.00027931,2]
[426894248,1782991834000,-3810.09,0.00027397,10]
[426894275,1782991834000,-774.91397975,0.000277,2]
[426894305,1782991834000,-978.02,0.00028364,7]
[426894249,1782991834000,-184.90772972,0.00027399,2]
[426894252,1782991834000,-500.0,0.00027399,2]
[426894250,1782991834000,-218.12027069,0.00027399,2]
[426894251,1782991834000,-393.3953333,0.00027399,2]
[426894254,1782991834000,-324.59560966,0.00027399,2]
[426894253,1782991834000,-468.09832888,0.00027399,2]
[426894255,1782991834000,-500.0,0.00027399,2]
[426894256,1782991834000,-500.0,0.00027399,2]
[426894257,1782991834000,-500.0,0.00027399,2]
[426894258,1782991834000,-500.0,0.00027399,2]
[426894260,1782991834000,-5922.97022071,0.000274,2]
[426894259,1782991834000,-152.68418948,0.00027399,2]
[426894264,1782991834000,-189.77159536,0.000274,2]
[426894261,1782991834000,-1041.62796235,0.000274,2]
[426894265,1782991834000,-1004.9926,0.00027434,2]
[426894266,1782991834000,-17283.9354,0.00027434,2]
[426894262,1782991834000,-774.91397975,0.000274,2]
[426894267,1782991834000,-168.12,0.00027434,30]
[426894263,1782991834000,-851.24811037,0.000274,2]
[426894268,1782991834000,-1071.18,0.00027472,2]
[426894270,1782991834000,-500.0,0.000275,7]
[426894272,1782991834000,-654.94,0.00027602,2]
[426894271,1782991834000,-174.43141024,0.000276,2]
[426894269,1782991834000,-160.0,0.00027477,2]
[426894273,1782991834000,-5922.97022071,0.000277,2]
[426894274,1782991834000,-1041.62796235,0.000277,2]
[426894277,1782991834000,-19748.39553307,0.00027842,2]
[426894310,1782991834000,-5922.97022071,0.000285,2]
[426894315,1782991834000,-205.68,0.00028632,30]
[426894306,1782991834000,-636.99,0.00028364,7]
[426894340,1782991834000,-174.43141022,0.00028925,2]
[426894341,1782991834000,-205.68,0.00028966,2]
[426894343,1782991834000,-3739.7989532,0.00028967,2]
[426894348,1782991834000,-500.0,0.00029,7]
[426894344,1782991834000,-248.96,0.00028967,2]
[426894345,1782991834000,-173.3,0.00028967,2]
[426894347,1782991834000,-173.31,0.00028967,2]
[426894346,1782991834000,-248.87,0.00028967,2]
[426894350,1782991834000,-500.0,0.00029,7]
[426894351,1782991834000,-500.0,0.00029,7]
[426894349,1782991834000,-500.0,0.00029,7]
[426894354,1782991834000,-500.0,0.00029,7]
[426894353,1782991834000,-500.0,0.00029,7]
[426894352,1782991834000,-500.0,0.00029,7]
[426894355,1782991834000,-500.0,0.00029,7]
[426894356,1782991834000,-500.0,0.00029,7]
[426894312,1782991834000,-774.91397975,0.000285,2]
[426894357,1782991834000,-532.11,0.00029,7]
[426894361,1782991834000,-500.0,0.00029,7]
[426894359,1782991834000,-500.0,0.00029,7]
[426894360,1782991834000,-500.0,0.00029,7]
[426894366,1782991834000,-669.09185747,0.00029,2]
[426894362,1782991834000,-500.0,0.00029,7]
[426894363,1782991834000,-500.0,0.00029,7]
[426894365,1782991834000,-500.0,0.00029,7]
[426894364,1782991834000,-500.0,0.00029,7]
[426894367,1782991834000,-212.12218535,0.00029,2]
[426894339,1782991834000,-321.0,0.00028904,2]
[426894338,1782991834000,-25433.0,0.00028904,2]
[426894358,1782991834000,-500.0,0.00029,7]
[426894342,1782991834000,-206.57,0.00028966,2]
[426894337,1782991834000,-1011.25,0.00028903,7]
[426894311,1782991834000,-1041.62796235,0.000285,2]
[426894308,1782991834000,-160.0,0.00028364,7]
[426894309,1782991834000,-173.66,0.00028453,2]
[426894307,1782991834000,-16523.97,0.00028364,7]
[426894313,1782991834000,-851.24811037,0.000285,2]
[426894317,1782991834000,-254.54,0.00028633,2]
[426894318,1782991834000,-255.79,0.00028633,2]
[426894314,1782991834000,-258.890702,0.0002862,7]
[426894323,1782991834000,-248.87,0.00028634,30]
[426894322,1782991834000,-248.96,0.00028634,30]
[426894321,1782991834000,-173.31,0.00028633,30]
[426894320,1782991834000,-253.24,0.00028633,2]
[426894316,1782991834000,-206.57,0.00028632,30]
[426894319,1782991834000,-173.3,0.00028633,30]
[426894336,1782991834000,-1000.0,0.00028903,2]
[426894325,1782991834000,-19748.39553303,0.00028744,2]
[426894332,1782991834000,-248.87,0.000288,7]
[426894331,1782991834000,-173.3,0.000288,7]
[426894334,1782991834000,-3739.7989532,0.00028833,2]
[426894335,1782991834000,-508.0,0.00028899,3]
[426894333,1782991834000,-173.31,0.000288,7]
[426894328,1782991834000,-5922.97022071,0.000288,2]
[426894330,1782991834000,-248.96,0.000288,7]
[426894326,1782991834000,-205.68,0.00028799,7]
[426894327,1782991834000,-206.57,0.00028799,7]
[426894324,1782991834000,-3739.79895328,0.000287,2]
[426894329,1782991834000,-1041.62796235,0.000288,2]
[426894389,1782991835000,-500.0,0.0002916,2]
[426894392,1782991835000,-19748.39553303,0.00029195,2]
[426894397,1782991835000,-173.3,0.00029301,7]
[426894390,1782991835000,-449.5491622,0.0002916,2]
[426894394,1782991835000,-205.68,0.000293,7]
[426894393,1782991835000,-3739.7989532,0.00029233,2]
[426894396,1782991835000,-248.96,0.00029301,7]
[426894395,1782991835000,-206.57,0.000293,7]
[426894400,1782991835000,-182.77460831,0.00029315,2]
[426894401,1782991835000,-3739.7989532,0.00029367,2]
[426894399,1782991835000,-173.31,0.00029301,7]
[426894402,1782991835000,-5922.97022071,0.000294,2]
[426894403,1782991835000,-1041.62796235,0.000294,2]
[426894404,1782991835000,-2000.0,0.00029414,3]
[426894391,1782991835000,-182.60383974,0.00029181,2]
[426894408,1782991835000,-3739.7989532,0.00029633,2]
[426894398,1782991835000,-248.87,0.00029301,7]
[426894388,1782991835000,-500.0,0.0002916,2]
[426894374,1782991835000,-204.0,0.00029,2]
[426894385,1782991835000,-173.3,0.00029134,30]
[426894410,1782991835000,-5922.97022071,0.000297,2]
[426894368,1782991835000,-154.0,0.00029,4]
[426894369,1782991835000,-154.0,0.00029,4]
[426894371,1782991835000,-158.0,0.00029,2]
[426894370,1782991835000,-154.0,0.00029,4]
[426894372,1782991835000,-280.0,0.00029,2]
[426894373,1782991835000,-323.0,0.00029,2]
[426894375,1782991835000,-371.0,0.00029,2]
[426894377,1782991835000,-582.0,0.00029,2]
[426894376,1782991835000,-189.0,0.00029,2]
[426894378,1782991835000,-222.11,0.00029025,30]
[426894380,1782991835000,-1041.62796235,0.000291,2]
[426894381,1782991835000,-3739.7989532,0.000291,2]
[426894383,1782991835000,-206.57,0.00029133,30]
[426894384,1782991835000,-248.96,0.00029134,30]
[426894382,1782991835000,-205.68,0.00029133,30]
[426894386,1782991835000,-248.87,0.00029134,30]
[426894387,1782991835000,-173.31,0.00029134,30]
[426894409,1782991835000,-19748.39553303,0.00029646,2]
[426894379,1782991835000,-5922.97022071,0.000291,2]
[426894407,1782991835000,-150.0,0.00029534,2]
[426894434,1782991835000,-500.0,0.00029999,7]
[426894433,1782991835000,-151.0,0.00029997,7]
[426894432,1782991835000,-172.50867144,0.0002996,2]
[426894430,1782991835000,-1500.0,0.0002996,2]
[426894435,1782991835000,-225.53895044,0.00029999,7]
[426894436,1782991835000,-500.0,0.00029999,14]
[426894438,1782991835000,-1000.0,0.00029999,2]
[426894447,1782991835000,-791.46315788,0.0003,30]
[426894440,1782991835000,-500.0,0.00029999,7]
[426894437,1782991835000,-500.0,0.00029999,14]
[426894441,1782991835000,-500.0,0.00029999,60]
[426894439,1782991835000,-1011.25,0.00029999,7]
[426894443,1782991835000,-40016.26433778,0.0003,30]
[426894445,1782991835000,-92091.10654669,0.0003,30]
[426894442,1782991835000,-500.0,0.00029999,60]
[426894446,1782991835000,-400.0,0.0003,30]
[426894405,1782991835000,-151.54125967,0.00029448,2]
[426894431,1782991835000,-1500.0,0.0002996,2]
[426894428,1782991835000,-1500.0,0.0002996,2]
[426894444,1782991835000,-22187.40045255,0.0003,30]
[426894427,1782991835000,-1500.0,0.0002996,2]
[426894429,1782991835000,-1500.0,0.0002996,2]
[426894406,1782991835000,-3739.7989532,0.000295,2]
[426894411,1782991835000,-1041.62796235,0.000297,2]
[426894413,1782991835000,-1602.86679666,0.00029767,2]
[426894415,1782991835000,-165.28,0.00029822,2]
[426894414,1782991835000,-200.0,0.000298,10]
[426894417,1782991835000,-511.21232853,0.000299,2]
[426894418,1782991835000,-3739.7989532,0.000299,2]
[426894412,1782991835000,-2136.93215654,0.00029767,2]
[426894419,1782991835000,-400.0,0.000299,10]
[426894420,1782991835000,-2769.81203964,0.0002996,2]
[426894424,1782991835000,-1500.0,0.0002996,2]
[426894421,1782991835000,-500.0,0.0002996,2]
[426894422,1782991835000,-1500.0,0.0002996,2]
[426894423,1782991835000,-1500.0,0.0002996,2]
[426894426,1782991835000,-1500.0,0.0002996,2]
[426894416,1782991835000,-500.0,0.00029899,7]
[426894425,1782991835000,-1500.0,0.0002996,2]
[426894481,1782991838000,-249.46,0.00029301,7]
[426894480,1782991838000,-173.63,0.00029301,7]
[426894478,1782991838000,-4176.0,0.00029284,2]
[426894484,1782991838000,-206.41,0.00029468,2]
[426894486,1782991838000,-196357.40797984,0.0003,30]
[426894485,1782991838000,-173.63,0.00029635,30]
[426894497,1782991838000,-1000.0,0.00030121,2]
[426894488,1782991838000,-1041.62796235,0.0003,2]
[426894490,1782991838000,-204.19515675,0.00030037,2]
[426894498,1782991838000,-1011.25,0.00030121,7]
[426894493,1782991838000,-221.22935702,0.00030042,2]
[426894496,1782991838000,-732.45374336,0.00030109,2]
[426894483,1782991838000,-249.46,0.00029468,2]
[426894494,1782991838000,-236.53670697,0.00030042,2]
[426894487,1782991838000,-5922.97022071,0.0003,2]
[426894482,1782991838000,-173.63,0.00029468,2]
[426894466,1782991838000,-251.94,0.00028633,2]
[426894477,1782991838000,-249.46,0.00029134,30]
[426894491,1782991838000,-332.85443695,0.00030037,2]
[426894464,1782991838000,-3175.08,0.00027397,10]
[426894463,1782991838000,-188.95,0.00024658,2]
[426894465,1782991838000,-206.41,0.00028632,30]
[426894470,1782991838000,-173.63,0.000288,7]
[426894469,1782991838000,-206.41,0.00028799,7]
[426894479,1782991838000,-206.41,0.000293,7]
[426894467,1782991838000,-173.63,0.00028633,30]
[426894472,1782991838000,-206.41,0.00028966,2]
[426894471,1782991838000,-249.46,0.000288,7]
[426894473,1782991838000,-173.63,0.00028967,2]
[426894475,1782991838000,-206.41,0.00029133,30]
[426894474,1782991838000,-249.46,0.00028967,2]
[426894476,1782991838000,-173.63,0.00029134,30]
[426894468,1782991838000,-249.46,0.00028633,30]
[426894492,1782991838000,-614.02505073,0.00030037,2]
[426894489,1782991838000,-160.0,0.0003,30]
[426894499,1782991838000,-188.96,0.00030136,7]
[426894527,1782991838000,-494.20130704,0.00030499,28]
[426894517,1782991838000,-1011.25,0.00030425,7]
[426894523,1782991838000,-201.81200805,0.00030441,30]
[426894515,1782991838000,-1000.0,0.00030425,2]
[426894529,1782991838000,-371.68,0.000305,7]
[426894534,1782991838000,-518.5,0.00030508,2]
[426894532,1782991838000,-2769.81203964,0.00030508,2]
[426894547,1782991838000,-151.62,0.00030518,2]
[426894536,1782991838000,-1500.0,0.00030508,2]
[426894549,1782991838000,-151.0,0.00030518,2]
[426894538,1782991838000,-400.65667532,0.0003051,2]
[426894548,1782991838000,-151.0,0.00030518,2]
[426894541,1782991838000,-151.0,0.00030518,2]
[426894543,1782991838000,-151.0,0.00030518,2]
[426894495,1782991838000,-19748.39553303,0.00030096,2]
[426894514,1782991838000,-295.81447753,0.00030424,120]
[426894519,1782991838000,-328333.3313115,0.00030426,2]
[426894550,1782991838000,-151.0,0.00030518,2]
[426894525,1782991838000,-187.26727707,0.00030499,28]
[426894500,1782991838000,-433.99,0.00030137,120]
[426894521,1782991838000,-2000.0,0.00030429,26]
[426894501,1782991838000,-201.81200805,0.00030137,30]
[426894502,1782991838000,-2000.0,0.000302,2]